lending/lending_fUSD_20240809
["ID","MTS","AMOUNT","RATE_DAILY","PERIOD"]
[334492735,1723165854881,-511.17,0.00024497,5]
[334492736,1723165854895,-151.0,0.00024497,7]
[334492737,1723165854904,-500.0,0.00024498,5]
[334492738,1723165854915,-500.0,0.00024498,5]
[334492739,1723165854924,-500.0,0.00024498,5]
[334492740,1723165854935,-511.17,0.00024498,5]
[334492741,1723165854944,-511.17,0.00024498,5]
[334492742,1723165854953,-511.17,0.00024498,5]
[334492743,1723165854963,-511.17,0.00024498,5]
[334492744,1723165854972,-511.17,0.00024498,5]
[334492745,1723165854982,-511.17,0.00024498,5]
[334492746,1723165854992,-561.49099305,0.00024499,5]
[334492747,1723165855002,-573.34,0.00024499,5]
[334492748,1723165855011,-3463.39,0.00024499,5]
[334492749,1723165855021,-429.12407839,0.00024499,5]
[334492750,1723165855032,-3034.41015095,0.00024499,5]
[334492751,1723165855042,-573.52,0.00024499,5]
[334492752,1723165855051,-500.0,0.00024499,5]
[334492753,1723165855060,-500.0,0.00024499,5]
[334492754,1723165855069,-500.0,0.00024499,5]
[334492755,1723165855079,-500.0,0.00024499,5]
[334492756,1723165855088,-217.06874905,0.00024499,5]
[334492757,1723165855100,-282.93125095,0.00024499,5]
[334492758,1723165855109,-500.0,0.00024499,5]
[334492759,1723165855119,-500.0,0.00024499,5]
[334492760,1723165855129,-602.0,0.00024499,5]
[334492761,1723165855139,-500.0,0.00024499,5]
[334492762,1723165855148,-500.0,0.00024499,5]
[334492763,1723165855157,-500.0,0.00024499,5]
[334492764,1723165855166,-469.23574909,0.00024499,5]
[334492765,1723165855178,-30.76425091,0.00024499,5]
[334492766,1723165855187,-282.29905878,0.00024499,5]
[334492767,1723165855199,-217.70094122,0.00024499,5]
[334492768,1723165855208,-500.0,0.00024499,5]
[334492769,1723165855218,-500.0,0.00024499,5]
[334492770,1723165855227,-500.0,0.00024499,5]
[334492771,1723165855237,-500.0,0.00024499,5]
[334492772,1723165855246,-500.0,0.00024499,5]
[334492773,1723165855255,-500.0,0.00024499,5]
[334492774,1723165855265,-500.0,0.00024499,5]
[334492775,1723165855275,-500.0,0.00024499,5]
[334492776,1723165855400,-536.44,0.00024499,5]
[334492777,1723165855411,-500.0,0.00024499,5]
[334492778,1723165855421,-500.0,0.00024499,5]
[334492779,1723165855431,-500.0,0.00024499,5]
[334492780,1723165855440,-500.0,0.00024499,5]
[334492781,1723165855449,-500.0,0.00024499,5]
[334492782,1723165855459,-500.0,0.00024499,5]
[334492783,1723165855468,-500.0,0.00024499,5]
[334492784,1723165855478,-500.0,0.00024499,5]
[334492785,1723165855487,-477.22,0.00024499,5]
[334492786,1723165855497,-552.80364128,0.00024499,5]
[334492787,1723165856034,2026.26,0.00025,60]
[334492812,1723167032511,-2500.0,0.00012,2]
[334492813,1723167032520,-550.0,0.00013,2]
[334492814,1723167032530,-877.66252349,0.00014,4]
[334492815,1723167032539,-600.0,0.00015,2]
[334492817,1723167032548,-300.0,0.00017807,2]
[334492819,1723167032559,-1633.9796717,0.00018081,2]
[334492821,1723167032568,-155.0,0.00019045,2]
[334492822,1723167032578,-3550.65471,0.00020735,2]
[334492823,1723167032587,-161.75,0.0002084,2]
[334492824,1723167032596,-146743.29044444,0.00021,4]
[334492825,1723167032608,-7956.36000009,0.00021,4]
[334492826,1723167032693,-285.0,0.00021,4]
[334492827,1723167032705,-8156.32894082,0.00021,4]
[334492828,1723167032717,-577.08950482,0.00021,4]
[334492829,1723167032733,-1670.90790627,0.00021,4]
[334492830,1723167032745,-1757.76879465,0.00021,4]
[334492831,1723167032756,-9352.34230852,0.00021,4]
[334492832,1723167032766,-2138.45356507,0.00021,4]
[334492833,1723167032775,-357.81,0.00021184,2]
[334492834,1723167032784,-250.0,0.00022261,2]
[334492835,1723167032794,-488.0,0.00022261,2]
[334492836,1723167032803,-195.09,0.00022306,2]
[334492837,1723167032812,-250.0,0.00022336,2]
[334492838,1723167032822,-109.20944909,0.000225,3]
[334492839,1723167032833,-1456.79055091,0.000225,3]
[334492840,1723167032842,-512.0,0.00022686,2]
[334492841,1723167032852,-161.75,0.00023104,2]
[334492843,1723167032862,-519.4594491,0.0002388,2]
[334492846,1723167032873,-6269.82317668,0.0002388,2]
[334492847,1723167032883,-161.24901506,0.00023945,30]
[334492849,1723167032892,-183.301634,0.00024109,5]
[334492851,1723167032903,-213.2091,0.00024186,2]
[334492853,1723167032912,-1203.7106,0.00024186,2]
[334492855,1723167032922,-1496.0719,0.00024187,2]
[334492857,1723167032931,-1293.18142869,0.00024187,2]
[334492859,1723167032944,-3474.12324214,0.00024187,2]
[334492861,1723167032955,-836.32990343,0.00024187,2]
[334492863,1723167032965,-1776.54441249,0.00024187,2]
[334492864,1723167032977,-288.46491325,0.00024187,2]
[334492865,1723167032986,-710.0368,0.00024187,2]
[334492866,1723167032995,-759.71,0.00024192,2]
[334492867,1723167033004,-1120.09931288,0.00024267,2]
[334492868,1723167033015,-493.28190959,0.00024267,2]
[334492869,1723167033027,-264.05668947,0.00024267,2]
[334492870,1723167033046,-6430.25741729,0.00024267,2]
[334492871,1723167033056,-500.0,0.00024276,5]
[334492872,1723167033064,-500.0,0.00024276,5]
[334492873,1723167033073,-500.0,0.00024276,5]
[334492874,1723167033083,-500.0,0.00024276,5]
[334492875,1723167033092,-931.04,0.00024276,5]
[334492876,1723167033101,-853.83,0.00024276,5]
[334492877,1723167033110,-500.0,0.00024276,5]
[334492878,1723167033120,-655.55,0.00024276,5]
[334492879,1723167033129,-500.0,0.00024276,5]
[334492880,1723167033138,-500.0,0.00024276,5]
[334492881,1723167033148,-1012.69,0.00024276,5]
[334492882,1723167033158,-759.37,0.00024276,5]
[334492883,1723167033167,-1085.63,0.00024276,5]
[334492884,1723167033176,-1733.63,0.00024276,5]
[334492885,1723167033186,-449.1060636,0.00024276,5]
[334492886,1723167033203,-963.6739364,0.00024276,5]
[334492887,1723167033213,-510.66,0.00024276,5]
[334492888,1723167033223,-768.23,0.00024276,5]
[334492889,1723167033232,-500.0,0.00024276,5]
[334492890,1723167033243,-500.0,0.00024276,5]
[334492891,1723167033252,-500.0,0.00024276,5]
[334492892,1723167033261,-5672.77234935,0.00024276,5]
[334492893,1723167033272,-909.3594811,0.00024276,5]
[334492914,1723167038804,-719.45,0.00024276,5]
[334492915,1723167038816,-287.56052929,0.00024276,5]
[334492916,1723167038827,-2510.72,0.00024276,5]
[334492917,1723167038840,-590.46576254,0.00024276,5]
[334492918,1723167038854,-1100.67125844,0.00024276,5]
[334492919,1723167038868,-887.5,0.00024276,5]
[334492920,1723167038881,-666.4,0.00024276,5]
[334492921,1723167038892,-183.09061928,0.00024276,5]
[334492922,1723167038903,-601.5512091,0.00024276,5]
[334492923,1723167038915,-2291.6987909,0.00024276,5]
[334492924,1723167038925,-884.61,0.00024276,5]
[334492925,1723167038935,-12427.1021544,0.00024277,4]
[334492926,1723167038948,-155.87,0.00024277,2]
[334492927,1723167038958,-3106.7755386,0.0002428,4]
[334492928,1723167038967,-500.0,0.00024284,5]
[334492929,1723167038976,-500.0,0.00024284,5]
[334492930,1723167038986,-1032.78,0.00024284,5]
[334492931,1723167038996,-500.0,0.00024284,5]
[334492932,1723167039006,-502.11056136,0.00024284,5]
[334492933,1723167039016,-500.0,0.00024284,5]
[334492934,1723167039025,-500.0,0.00024284,5]
[334492935,1723167039034,-521.53508175,0.00024284,5]
[334492936,1723167039044,-503.77453457,0.00024284,5]
[334492937,1723167039054,-502.84527166,0.00024284,5]
[334492938,1723167039063,-500.0,0.00024284,5]
[334492939,1723167039073,-501.90144483,0.00024284,5]
[334492940,1723167039084,-500.0,0.00024284,5]
[334492941,1723167039094,-576.56849512,0.00024284,5]
[334492942,1723167039103,-500.0,0.00024284,5]
[334492943,1723167039113,-502.75170417,0.00024284,5]
[334492944,1723167039122,-502.22498632,0.00024284,5]
[334492945,1723167039131,-500.0,0.00024284,5]
[334492946,1723167039140,-500.0,0.00024284,5]
[334492947,1723167039149,-503.02962022,0.00024284,5]
[334492948,1723167039158,-503.56430001,0.00024284,5]
[334492949,1723167039167,-502.73048241,0.00024284,5]
[334492950,1723167039176,-500.0,0.00024284,5]
[334492951,1723167039185,-500.0,0.00024285,5]
[334492952,1723167039197,-500.0,0.00024285,5]
[334492953,1723167039206,-500.0,0.00024285,5]
[334492954,1723167039216,-320.68669942,0.00024285,5]
[334492955,1723167039226,-500.0,0.00024285,5]
[334492956,1723167039235,-522.77,0.00024285,5]
[334492957,1723167039247,-1571.1,0.00024285,5]
[334492958,1723167039256,-500.67535257,0.00024285,5]
[334492960,1723167039265,-500.0,0.00024285,5]
[334492962,1723167039275,-500.0,0.00024286,5]
[334492964,1723167039284,-500.0,0.00024286,5]
[334492966,1723167039293,-500.0,0.00024286,5]
[334492968,1723167039304,-500.0,0.00024286,5]
[334492970,1723167039315,-500.0,0.00024286,5]
[334492972,1723167039324,-500.0,0.00024286,5]
[334492974,1723167039333,-500.0,0.00024286,5]
[334492976,1723167039342,-500.0,0.00024286,5]
[334492978,1723167039352,-605.62,0.00024286,5]
[334492980,1723167039361,-571.01,0.00024286,5]
[334492982,1723167039371,-500.0,0.00024286,5]
[334492984,1723167039380,-500.0,0.00024286,5]
[334492986,1723167039390,-500.0,0.00024286,5]
[334492987,1723167039398,-500.0,0.00024286,5]
[334492989,1723167039408,-500.0,0.00024286,5]
[334492991,1723167039417,-500.0,0.00024286,5]
[334492993,1723167039427,-500.0,0.00024286,5]
[334492995,1723167039436,-514.03,0.00024286,5]
[334492997,1723167039447,-500.0,0.00024286,5]
[334492999,1723167039456,-500.0,0.00024286,5]
[334493001,1723167039466,-500.0,0.00024286,5]
[334493003,1723167039476,-500.0,0.00024286,5]
[334493005,1723167039485,-500.0,0.00024286,5]
[334493007,1723167039494,-500.0,0.00024286,5]
[334493009,1723167039504,-500.0,0.00024286,5]
[334493011,1723167039514,-500.0,0.00024286,5]
[334493013,1723167039523,-500.0,0.00024286,5]
[334493015,1723167039532,-500.0,0.00024286,5]
[334493018,1723167039542,-500.0,0.00024286,5]
[334493020,1723167039551,-500.0,0.00024286,5]
[334493022,1723167039561,-500.0,0.00024286,5]
[334493024,1723167039570,-501.27,0.00024286,5]
[334493026,1723167039579,-502.20870795,0.00024286,5]
[334493028,1723167039589,-500.0,0.00024286,5]
[334493030,1723167039598,-516.44,0.00024286,5]
[334493032,1723167039607,-500.0,0.00024286,5]
[334493034,1723167039616,-591.6,0.00024286,5]
[334493036,1723167039626,-500.0,0.00024286,5]
[334493038,1723167039634,-500.0,0.00024286,5]
[334493039,1723167039644,-500.0,0.00024286,5]
[334493042,1723167039653,-549.86,0.00024286,5]
[334493044,1723167039662,-500.0,0.00024286,5]
[334493045,1723167039672,-500.0,0.00024286,5]
[334493048,1723167039681,-502.15415355,0.00024286,5]
[334493050,1723167039693,-500.0,0.00024286,5]
[334493052,1723167039704,-500.0,0.00024286,5]
[334493054,1723167039713,-587.15,0.00024286,5]
[334493056,1723167039722,-500.0,0.00024286,5]
[334493057,1723167039732,-323.51772022,0.00024286,5]
[334493060,1723167039745,-178.51814005,0.00024286,5]
[334493062,1723167039755,-477.17830925,0.00024286,5]
[334493064,1723167039768,-22.82169075,0.00024286,5]
[334493066,1723167039778,-500.0,0.00024286,5]
[334493068,1723167039788,-195.14036979,0.00024286,5]
[334493071,1723167039801,-304.85963021,0.00024286,5]
[334493073,1723167039810,-138.27129361,0.00024286,5]
[334493075,1723167039823,-371.4095962,0.00024286,5]
[334493077,1723167039833,-550.3,0.00024286,5]
[334493079,1723167039844,-500.0,0.00024286,5]
[334493081,1723167039855,-500.0,0.00024286,5]
[334493083,1723167039865,-500.0,0.00024286,5]
[334493084,1723167039874,-500.0,0.00024286,5]
[334493086,1723167039885,-501.01647214,0.00024286,5]
[334493088,1723167039894,-500.0,0.00024286,5]
[334493090,1723167039905,-500.0,0.00024286,5]
[334493092,1723167039915,-500.0,0.00024286,5]
[334493094,1723167039924,-214.61252696,0.00024286,5]
[334493096,1723167039933,-500.0,0.00024286,5]
[334493098,1723167039944,-500.0,0.00024286,5]
[334493100,1723167039953,-500.0,0.00024286,5]
[334493102,1723167039962,-500.0,0.00024286,5]
[334493104,1723167039971,-629.19,0.00024286,5]
[334493105,1723167039980,-500.0,0.00024286,5]
[334493107,1723167039989,-500.0,0.00024286,5]
[334493109,1723167039998,-500.0,0.00024286,5]
[334493111,1723167040007,-500.0,0.00024286,5]
[334493113,1723167040017,-500.0,0.00024286,5]
[334493115,1723167040026,-500.0,0.00024286,5]
[334493117,1723167040034,-500.0,0.00024286,5]
[334493119,1723167040044,-500.0,0.00024286,5]
[334493121,1723167040053,-500.0,0.00024286,5]
[334493123,1723167040063,-500.0,0.00024286,5]
[334493125,1723167040072,-500.0,0.00024286,5]
[334493127,1723167040081,-500.0,0.00024286,5]
[334493129,1723167040090,-594.32,0.00024286,5]
[334493131,1723167040099,-500.0,0.00024286,5]
[334493132,1723167040109,-500.0,0.00024286,5]
[334493134,1723167040118,-500.0,0.00024286,5]
[334493136,1723167040127,-500.0,0.00024286,5]
[334493138,1723167040136,-500.0,0.00024286,5]
[334493140,1723167040146,-500.0,0.00024286,5]
[334493142,1723167040155,-500.0,0.00024286,5]
[334493144,1723167040165,-500.0,0.00024286,5]
[334493146,1723167040175,-500.0,0.00024286,5]
[334493148,1723167040184,-500.0,0.00024286,5]
[334493150,1723167040195,-500.0,0.00024286,5]
[334493152,1723167040204,-500.0,0.00024286,5]
[334493154,1723167040214,-500.35392606,0.00024286,5]
[334493156,1723167040224,-500.0,0.00024286,5]
[334493158,1723167040239,-500.0,0.00024286,5]
[334493161,1723167040250,-500.0,0.00024286,5]
[334493163,1723167040261,-500.0,0.00024286,5]
[334493165,1723167040271,-500.0,0.00024286,5]
[334493167,1723167040282,-500.0,0.00024286,5]
[334493169,1723167040292,-500.0,0.00024286,5]
[334493171,1723167040303,-500.0,0.00024286,5]
[334493173,1723167040314,-500.0,0.00024286,5]
[334493175,1723167040325,-500.0,0.00024286,5]
[334493177,1723167040337,-500.0,0.00024286,5]
[334493179,1723167040346,-500.0,0.00024286,5]
[334493181,1723167040357,-500.0,0.00024286,5]
[334493183,1723167040367,-500.0,0.00024286,5]
[334493185,1723167040377,-500.0,0.00024286,5]
[334493187,1723167040387,-500.0,0.00024286,5]
[334493189,1723167040397,-500.61377812,0.00024286,5]
[334493191,1723167040408,-500.0,0.00024286,5]
[334493193,1723167040418,-500.0,0.00024286,5]
[334493195,1723167040428,-500.0,0.00024286,5]
[334493197,1723167040438,-500.0,0.00024286,5]
[334493199,1723167040449,-500.0,0.00024286,5]
[334493201,1723167040458,-500.0,0.00024286,5]
[334493203,1723167040468,-500.0,0.00024286,5]
[334493205,1723167040478,-500.0,0.00024286,5]
[334493207,1723167040487,-500.0,0.00024286,5]
[334493209,1723167040497,-500.27610494,0.00024286,5]
[334493211,1723167040506,-500.37458159,0.00024286,5]
[334493213,1723167040515,-500.0,0.00024286,5]
[334493214,1723167040532,-500.0,0.00024286,5]
[334493216,1723167040541,-500.0,0.00024286,5]
[334493218,1723167040551,-500.0,0.00024286,5]
[334493220,1723167040560,-500.0,0.00024286,5]
[334493222,1723167040570,-500.0,0.00024286,5]
[334493224,1723167040579,-500.0,0.00024286,5]
[334493226,1723167040588,-500.0,0.00024286,5]
[334493228,1723167040598,-500.72960385,0.00024286,5]
[334493230,1723167040607,-500.0,0.00024286,5]
[334493232,1723167040616,-500.89783426,0.00024286,5]
[334493234,1723167040626,-500.63292715,0.00024286,5]
[334493236,1723167040636,-500.0,0.00024286,5]
[334493238,1723167040647,-501.72005911,0.00024286,5]
[334493240,1723167040659,-502.38816451,0.00024286,5]
[334493242,1723167040670,-500.0,0.00024286,5]
[334493244,1723167040679,-500.0,0.00024286,5]
[334493246,1723167040689,-500.0,0.00024286,5]
[334493249,1723167040702,-500.0,0.00024286,5]
[334493250,1723167040719,-500.45624296,0.00024286,5]
[334493252,1723167040728,-500.0,0.00024286,5]
[334493254,1723167040737,-20024.71182484,0.00024286,2]
[334493255,1723167040747,-500.0,0.00024286,5]
[334493256,1723167040756,-500.92683406,0.00024286,5]
[334493257,1723167040766,-500.0,0.00024286,5]
[334493258,1723167040774,-500.0,0.00024286,5]
[334493259,1723167040783,-500.0,0.00024286,5]
[334493260,1723167040793,-500.0,0.00024286,5]
[334493261,1723167040802,-502.07810832,0.00024286,5]
[334493262,1723167040811,-500.0,0.00024286,5]
[334493264,1723167040820,-501.10396188,0.00024286,5]
[334493265,1723167040830,-500.67659228,0.00024286,5]
[334493267,1723167040839,-500.0,0.00024286,5]
[334493269,1723167040848,-501.15349601,0.00024286,5]
[334493271,1723167040858,-501.11454373,0.00024286,5]
[334493273,1723167040868,-500.0,0.00024286,5]
[334493275,1723167040878,-500.0,0.00024286,5]
[334493277,1723167040888,-500.0,0.00024286,5]
[334493280,1723167040899,-500.0,0.00024286,5]
[334493282,1723167040911,-500.0,0.00024286,5]
[334493284,1723167040922,-500.0,0.00024286,5]
[334493286,1723167040932,-500.0,0.00024286,5]
[334493288,1723167040942,-500.0,0.00024286,5]
[334493290,1723167040952,-500.0,0.00024286,5]
[334493291,1723167040961,-500.0,0.00024286,5]
[334493293,1723167040971,-500.0,0.00024286,5]
[334493295,1723167040981,-500.0,0.00024286,5]
[334493297,1723167040992,-500.0,0.00024286,5]
[334493300,1723167041004,-500.0,0.00024286,5]
[334493302,1723167041014,-500.0,0.00024286,5]
[334493304,1723167041025,-500.75342027,0.00024286,5]
[334493306,1723167041036,-500.0,0.00024286,5]
[334493308,1723167041046,-500.28615847,0.00024286,5]
[334493310,1723167041055,-500.0,0.00024286,5]
[334493312,1723167041065,-500.0,0.00024286,5]
[334493314,1723167041075,-500.0,0.00024286,5]
[334493316,1723167041085,-500.0,0.00024286,5]
[334493318,1723167041096,-500.0,0.00024286,5]
[334493320,1723167041106,-500.0,0.00024286,5]
[334493322,1723167041116,-500.85404303,0.00024286,5]
[334493324,1723167041125,-500.26527035,0.00024286,5]
[334493326,1723167041135,-500.0,0.00024286,5]
[334493328,1723167041145,-551.95,0.00024286,5]
[334493330,1723167041154,-500.0,0.00024286,5]
[334493332,1723167041163,-500.0,0.00024286,5]
[334493334,1723167041173,-500.0,0.00024286,5]
[334493337,1723167041187,-500.0,0.00024286,5]
[334493339,1723167041197,-500.0,0.00024286,5]
[334493341,1723167041206,-500.0,0.00024286,5]
[334493343,1723167041216,-500.0,0.00024286,5]
[334493345,1723167041227,-500.62163373,0.00024286,5]
[334493347,1723167041238,-500.0,0.00024286,5]
[334493349,1723167041250,-500.85111476,0.00024286,5]
[334493351,1723167041260,-500.0,0.00024286,5]
[334493353,1723167041270,-500.71715896,0.00024286,5]
[334493355,1723167041281,-500.0,0.00024286,5]
[334493357,1723167041290,-500.0,0.00024286,5]
[334493359,1723167041300,-500.0,0.00024286,5]
[334493361,1723167041310,-500.0,0.00024286,5]
[334493363,1723167041321,-500.88240987,0.00024286,5]
[334493365,1723167041331,-500.0,0.00024286,5]
[334493367,1723167041341,-500.28316817,0.00024286,5]
[334493369,1723167041351,-500.0,0.00024286,5]
[334493371,1723167041360,-500.97569126,0.00024286,5]
[334493373,1723167041371,-500.0,0.00024286,5]
[334493375,1723167041381,-500.0,0.00024286,5]
[334493377,1723167041391,-500.0,0.00024286,5]
[334493379,1723167041401,-500.2682625,0.00024286,5]
[334493381,1723167041412,-500.0,0.00024286,5]
[334493383,1723167041421,-500.0,0.00024286,5]
[334493385,1723167041431,-500.0,0.00024286,5]
[334493387,1723167041442,-500.53433341,0.00024286,5]
[334493389,1723167041452,-500.0,0.00024286,5]
[334493391,1723167041461,-569.0356528,0.00024286,5]
[334493393,1723167041471,-500.0,0.00024286,5]
[334493395,1723167041480,-500.0,0.00024286,5]
[334493397,1723167041489,-500.0,0.00024286,5]
[334493399,1723167041499,-150.0,0.00024286,5]
[334493401,1723167041508,-500.0,0.00024286,5]
[334493403,1723167041517,-500.0,0.00024286,5]
[334493405,1723167041526,-258.54449799,0.00024286,5]
[334493447,1723167041918,-241.45550201,0.00024286,5]
[334493449,1723167041929,-500.0,0.00024286,5]
[334493451,1723167041938,-500.0,0.00024286,5]
[334493453,1723167041949,-500.0,0.00024286,5]
[334493455,1723167041958,-298.53837683,0.00024286,5]
[334493457,1723167041970,-201.46162317,0.00024286,5]
[334493459,1723167041979,-377.14738024,0.00024286,5]
[334493462,1723167041992,-122.85261976,0.00024286,5]
[334493463,1723167042001,-160.95698642,0.00024286,5]
[334493466,1723167042013,-339.04301358,0.00024286,5]
[334493467,1723167042022,-500.0,0.00024286,5]
[334493469,1723167042031,-500.0,0.00024286,5]
[334493471,1723167042040,-500.0,0.00024286,5]
[334493473,1723167042050,-501.0996814,0.00024286,5]
[334493475,1723167042059,-500.0,0.00024286,5]
[334493477,1723167042068,-500.0,0.00024286,5]
[334493479,1723167042078,-500.81460851,0.00024286,5]
[334493480,1723167042087,-500.0,0.00024286,5]
[334493482,1723167042096,-576.51,0.00024286,5]
[334493484,1723167042107,-500.0,0.00024286,5]
[334493486,1723167042119,-500.0,0.00024286,5]
[334493488,1723167042128,-500.0,0.00024286,5]
[334493490,1723167042139,-500.40873007,0.00024286,5]
[334493492,1723167042150,-589.32,0.00024286,5]
[334493494,1723167042161,-500.0,0.00024286,5]
[334493496,1723167042171,-500.0,0.00024286,5]
[334493499,1723167042181,-519.64,0.00024286,5]
[334493501,1723167042193,-500.0,0.00024286,5]
[334493503,1723167042202,-500.23166604,0.00024286,5]
[334493505,1723167042211,-500.59666378,0.00024286,5]
[334493507,1723167042220,-500.52028601,0.00024286,5]
[334493509,1723167042231,-500.0,0.00024286,5]
[334493511,1723167042241,-500.0,0.00024286,5]
[334493513,1723167042251,-500.42114681,0.00024286,5]
[334493514,1723167042260,-500.0,0.00024286,5]
[334493516,1723167042270,-500.31035675,0.00024286,5]
[334493517,1723167042279,-500.48492256,0.00024286,5]
[334493518,1723167042288,-545.67,0.00024286,5]
[334493519,1723167042297,-500.0,0.00024286,5]
[334493520,1723167042306,-500.0,0.00024286,5]
[334493521,1723167042316,-500.45285359,0.00024286,5]
[334493522,1723167042325,-500.0,0.00024286,5]
[334493523,1723167042334,-500.0,0.00024286,5]
[334493524,1723167042343,-500.0,0.00024286,5]
[334493525,1723167042353,-310.76028666,0.00024286,5]
[334493526,1723167042362,-500.48476425,0.00024286,5]
[334493527,1723167042371,-388.086763,0.00024286,5]
[334493528,1723167042380,-500.62042001,0.00024286,5]
[334493529,1723167042389,-500.0,0.00024286,5]
[334493530,1723167042398,-501.01430661,0.00024286,5]
[334493531,1723167042408,-500.0,0.00024286,5]
[334493532,1723167042417,-500.0,0.00024286,5]
[334493533,1723167042427,-500.0,0.00024286,5]
[334493534,1723167042436,-845.23,0.00024286,5]
[334493535,1723167042448,-500.0,0.00024286,5]
[334493536,1723167042458,-500.0,0.00024286,5]
[334493538,1723167042467,-540.04,0.00024286,5]
[334493540,1723167042476,-500.0,0.00024286,5]
[334493542,1723167042485,-500.0,0.00024286,5]
[334493544,1723167042494,-500.0,0.00024286,5]
[334493546,1723167042503,-500.0,0.00024286,5]
[334493548,1723167042514,-500.0,0.00024286,5]
[334493550,1723167042524,-500.0,0.00024286,5]
[334493552,1723167042534,-500.0,0.00024286,5]
[334493554,1723167042543,-500.0,0.00024286,5]
[334493556,1723167042552,-500.0,0.00024286,5]
[334493558,1723167042562,-500.0,0.00024286,5]
[334493559,1723167042571,-931.04,0.00024286,5]
[334493561,1723167042581,-626.04,0.00024286,5]
[334493563,1723167042591,-853.83,0.00024286,5]
[334493565,1723167042600,-500.0,0.00024286,5]
[334493567,1723167042609,-500.0,0.00024286,5]
[334493569,1723167042620,-1237.13,0.00024286,5]
[334493571,1723167042630,-500.0,0.00024286,5]
[334493573,1723167042639,-655.55,0.00024286,5]
[334493575,1723167042649,-500.0,0.00024286,5]
[334493577,1723167042658,-500.0,0.00024286,5]
[334493579,1723167042669,-1012.69,0.00024286,5]
[334493581,1723167042678,-5304.8,0.00024286,5]
[334493583,1723167042687,-759.37,0.00024286,5]
[334493585,1723167042707,-1085.63,0.00024286,5]
[334493587,1723167042717,-1733.63,0.00024286,5]
[334493589,1723167042727,-1412.78,0.00024286,5]
[334493591,1723167042738,-510.66,0.00024286,5]
[334493593,1723167042750,-768.23,0.00024286,5]
[334493595,1723167042759,-500.0,0.00024286,5]
[334493597,1723167042769,-500.0,0.00024286,5]
[334493599,1723167042779,-500.0,0.00024286,5]
[334493601,1723167042788,-1032.78,0.00024286,5]
[334493603,1723167042797,-628.04343894,0.00024286,5]
[334493605,1723167042807,-500.0,0.00024286,5]
[334493607,1723167042817,-500.0,0.00024286,5]
[334493609,1723167042826,-500.0,0.00024286,5]
[334493611,1723167042835,-500.0,0.00024286,5]
[334493613,1723167042845,-500.0,0.00024286,5]
[334493615,1723167042854,-500.0,0.00024286,5]
[334493617,1723167042864,-6414.03609141,0.00024286,5]
[334493619,1723167042877,-4608.07243216,0.00024286,5]
[334493622,1723167042892,-291.77929952,0.00024286,5]
[334493624,1723167042908,-1440.14324261,0.00024286,5]
[334493627,1723167042923,-418.0170567,0.00024286,5]
[334493629,1723167042938,-355.9418776,0.00024286,5]
[334493631,1723167042954,-2893.25,0.00024286,5]
[334493633,1723167042965,-500.0,0.00024286,5]
[334493635,1723167042977,-500.0,0.00024286,5]
[334493638,1723167042988,-884.61,0.00024286,5]